fUST/lending_fUST_20250827
["ID","MTS","AMOUNT","RATE_DAILY","PERIOD"]
[381574072,1756288264795,-480.0,0.00023535,2]
[381574073,1756288264805,-5360.55,0.00023535,2]
[381574074,1756288264815,-1094.03,0.00023535,2]
[381574075,1756288264825,-978.65,0.00023535,2]
[381574076,1756288264834,-746.76,0.00023535,2]
[381574077,1756288264844,-3399.23,0.00023535,2]
[381574078,1756288264856,-513.09,0.00023535,2]
[381574079,1756288264866,-480.0,0.00023535,2]
[381574080,1756288264875,-480.0,0.00023535,2]
[381574081,1756288264886,-784.35,0.00023535,2]
[381574082,1756288264895,-480.0,0.00023535,2]
[381574083,1756288264905,-480.0,0.00023535,2]
[381574084,1756288264915,-480.0,0.00023535,2]
[381574085,1756288264924,-480.0,0.00023535,2]
[381574086,1756288264934,-517.64,0.00023535,2]
[381574087,1756288264944,-480.0,0.00023535,2]
[381574088,1756288264954,-480.0,0.00023535,2]
[381574089,1756288264963,-480.0,0.00023535,2]
[381574090,1756288264973,-480.0,0.00023535,2]
[381574091,1756288264982,-559.11,0.00023535,2]
[381574092,1756288264993,-697.92,0.00023535,2]
[381574093,1756288265003,-691.17,0.00023535,2]
[381574094,1756288265012,-1004.79,0.00023536,2]
[381574095,1756288265021,-931.64,0.00023536,2]
[381574096,1756288265031,-2284.01,0.00023536,2]
[381574097,1756288265040,-200.03,0.00023561,2]
[381574098,1756288265049,-200.03,0.00023561,2]
[381574099,1756288265058,-200.03,0.00023561,2]
[381574100,1756288265067,-493.58834984,0.00023573,2]
[381574101,1756288265077,-502.05494152,0.00023573,2]
[381574102,1756288265086,-150.0,0.00023573,2]
[381574103,1756288265096,-1379.86,0.00023635,2]
[381574104,1756288265105,-639.28,0.00023635,2]
[381574105,1756288265115,-5703.66,0.00023635,2]
[381574106,1756288265126,-2385.93,0.00023635,2]
[381574107,1756288265135,-494.16,0.00023635,2]
[381574108,1756288265144,-962.42,0.00023635,2]
[381574109,1756288265155,-6065.37,0.00023635,2]
[381574110,1756288265165,-3545.42,0.00023635,2]
[381574111,1756288265175,-520.47,0.00023635,2]
[381574112,1756288265184,-511.79,0.00023641,2]
[381574113,1756288265194,-480.0,0.00023641,2]
[381574114,1756288265204,-480.0,0.00023641,2]
[381574115,1756288265213,-480.0,0.00023641,2]
[381574116,1756288265222,-480.0,0.00023641,2]
[381574117,1756288265231,-480.0,0.00023641,2]
[381574118,1756288265243,-480.0,0.00023641,2]
[381574119,1756288265252,-480.0,0.00023641,2]
[381574120,1756288265261,-480.0,0.00023641,2]
[381574121,1756288265270,-480.0,0.00023641,2]
[381574122,1756288265281,-480.0,0.00023641,2]
[381574123,1756288265292,-480.0,0.00023641,2]
[381574124,1756288265302,-480.0,0.00023641,2]
[381574125,1756288265312,-684.54,0.00023641,2]
[381574126,1756288265321,-480.0,0.00023641,2]
[381574127,1756288265332,-480.0,0.00023641,2]
[381574128,1756288265341,-480.0,0.00023641,2]
[381574129,1756288265350,-567.16,0.00023641,2]
[381574130,1756288265359,-480.0,0.00023641,2]
[381574131,1756288265369,-480.0,0.00023641,2]
[381574132,1756288265379,-540.74,0.00023641,2]
[381574133,1756288265389,-480.0,0.00023641,2]
[381574134,1756288265399,-480.0,0.00023641,2]
[381574135,1756288265408,-480.0,0.00023641,2]
[381574136,1756288265418,-1915.45,0.00023641,2]
[381574137,1756288265427,-480.0,0.00023641,2]
[381574138,1756288265436,-480.0,0.00023641,2]
[381574139,1756288265448,-480.0,0.00023641,2]
[381574140,1756288265457,-566.54,0.00023641,2]
[381574141,1756288265466,-480.0,0.00023641,2]
[381574142,1756288265476,-506.14,0.00023641,2]
[381574143,1756288265486,-480.0,0.00023641,2]
[381574144,1756288265498,-480.0,0.00023641,2]
[381574145,1756288265508,-292.90491894,0.00023641,2]
[381574146,1756288265518,-480.0,0.00023641,2]
[381574147,1756288265528,-480.0,0.00023641,2]
[381574148,1756288265537,-480.0,0.00023641,2]
[381574149,1756288265547,-480.0,0.00023641,2]
[381574150,1756288265556,-990.34,0.00023641,2]
[381574151,1756288265566,-480.0,0.00023641,2]
[381574152,1756288265575,-480.0,0.00023641,2]
[381574153,1756288265585,-480.0,0.00023641,2]
[381574154,1756288265594,-484.84,0.00023641,2]
[381574155,1756288265604,-629.76,0.00023641,2]
[381574156,1756288265613,-480.0,0.00023641,2]
[381574157,1756288265623,-480.0,0.00023641,2]
[381574158,1756288265632,-3194.45,0.00023641,2]
[381574159,1756288265641,-482.36894063,0.00023641,2]
[381574160,1756288265651,-712.63,0.00023641,2]
[381574161,1756288265660,-480.0,0.00023641,2]
[381574162,1756288265670,-480.0,0.00023641,2]
[381574163,1756288265679,-480.0,0.00023641,2]
[381574164,1756288265689,-480.0,0.00023641,2]
[381574165,1756288265698,-5424.02,0.00023641,2]
[381574166,1756288265707,-829.41,0.00023641,2]
[381574167,1756288265717,-759.1,0.00023641,2]
[381574168,1756288265726,-593.9,0.00023641,2]
[381574169,1756288265736,-480.0,0.00023641,2]
[381574170,1756288265748,-524.28,0.00023641,2]
[381574171,1756288265762,-1496.51,0.00023641,2]
[381574172,1756288265771,-480.0,0.00023641,2]
[381574173,1756288265780,-2079.2,0.00023641,2]
[381574174,1756288265790,-480.0,0.00023641,2]
[381574175,1756288265799,-778.95,0.00023641,2]
[381574176,1756288265808,-480.0,0.00023641,2]
[381574177,1756288265817,-480.0,0.00023641,2]
[381574178,1756288265827,-480.0,0.00023641,2]
[381574179,1756288265838,-853.98,0.00023641,2]
[381574180,1756288265848,-285.64110379,0.00023641,2]
[381574181,1756288265857,-480.0,0.00023641,2]
[381574182,1756288265867,-554.37,0.00023641,2]
[381574183,1756288265876,-1187.29,0.00023641,2]
[381574184,1756288265887,-480.0,0.00023641,2]
[381574185,1756288265896,-480.0,0.00023641,2]
[381574186,1756288265906,-480.0,0.00023641,2]
[381574187,1756288265915,-658.92,0.00023641,2]
[381574188,1756288265925,-480.0,0.00023641,2]
[381574189,1756288265935,-480.0,0.00023641,2]
[381574190,1756288265944,-480.0,0.00023641,2]
[381574191,1756288265954,-728.31,0.00023641,2]
[381574192,1756288265963,-512.14,0.00023664,2]
[381574193,1756288265973,-480.0,0.00023664,2]
[381574194,1756288265982,-480.0,0.00023664,2]
[381574195,1756288265993,-483.23,0.00023664,2]
[381574196,1756288266003,-480.0,0.00023664,2]
[381574197,1756288266013,-480.0,0.00023664,2]
[381574198,1756288266021,-722.14,0.00023664,2]
[381574199,1756288266031,-480.0,0.00023664,2]
[381574200,1756288266040,-480.0,0.00023664,2]
[381574201,1756288266050,-480.0,0.00023664,2]
[381574202,1756288266059,-480.0,0.00023664,2]
[381574203,1756288266069,-519.21,0.00023664,2]
[381574204,1756288266078,-480.0,0.00023664,2]
[381574205,1756288266088,-480.0,0.00023664,2]
[381574206,1756288266097,-480.0,0.00023664,2]
[381574207,1756288266106,-520.4,0.00023664,2]
[381574208,1756288266116,-480.0,0.00023664,2]
[381574209,1756288266125,-480.0,0.00023664,2]
[381574210,1756288266134,-584.23,0.00023664,2]
[381574211,1756288266143,-519.71,0.00023664,2]
[381574212,1756288266152,-480.0,0.00023664,2]
[381574213,1756288266162,-480.0,0.00023664,2]
[381574214,1756288266171,-480.0,0.00023664,2]
[381574215,1756288266181,-955.09,0.00023664,2]
[381574216,1756288266190,-804.4,0.00023664,2]
[381574217,1756288266200,-480.0,0.00023664,2]
[381574218,1756288266209,-480.0,0.00023664,2]
[381574219,1756288266218,-480.0,0.00023664,2]
[381574220,1756288266228,-717.47,0.00023664,2]
[381574221,1756288266238,-1454.66,0.00023664,2]
[381574222,1756288266247,-480.0,0.00023664,2]
[381574223,1756288266256,-667.64,0.00023664,2]
[381574224,1756288266266,-480.0,0.00023664,2]
[381574225,1756288266275,-480.0,0.00023664,2]
[381574226,1756288266284,-151.0,0.00023664,7]
[381574227,1756288266293,-599.5,0.00023664,2]
[381574228,1756288266303,-580.22,0.00023664,2]
[381574229,1756288266312,-240.90071059,0.00023664,2]
[381574230,1756288266321,-216.764303,0.00023664,7]
[381574231,1756288266330,-216.764303,0.00023664,7]
[381574232,1756288266339,-216.764303,0.00023664,7]
[381574233,1756288266348,-666.46,0.00023664,2]
[381574234,1756288266357,-216.764303,0.00023664,7]
[381574235,1756288266367,-480.0,0.00023664,2]
[381574236,1756288266376,-480.0,0.00023664,2]
[381574237,1756288266385,-151.0,0.00023664,7]
[381574238,1756288266394,-480.0,0.00023664,2]
[381574239,1756288266403,-1498.11,0.00023664,2]
[381574240,1756288266412,-151.0,0.00023664,7]
[381574241,1756288266421,-865.47,0.00023664,2]
[381574242,1756288266431,-151.0,0.00023664,7]
[381574243,1756288266440,-151.0,0.00023664,7]
[381574244,1756288266449,-730.48,0.00023664,2]
[381574245,1756288266459,-480.0,0.00023664,2]
[381574246,1756288266468,-706.94,0.00023664,2]
[381574247,1756288266477,-1666.01,0.00023664,2]
[381574248,1756288266486,-480.0,0.00023664,2]
[381574249,1756288266495,-547.92,0.00023664,2]
[381574250,1756288266504,-913.68,0.00023664,2]
[381574251,1756288266514,-151.0,0.00023664,7]
[381574252,1756288266523,-151.0,0.00023664,7]
[381574253,1756288266532,-151.0,0.00023664,7]
[381574254,1756288266542,-421.63849111,0.00023664,2]
[381574255,1756288266551,-506.55918,0.00023664,7]
[381574256,1756288266560,-506.55918,0.00023664,7]
[381574257,1756288266569,-480.0,0.00023664,2]
[381574258,1756288266579,-506.55918,0.00023664,7]
[381574259,1756288266589,-151.0,0.00023664,7]
[381574260,1756288266599,-506.55918,0.00023664,7]
[381574261,1756288266608,-172.411813,0.00023664,7]
[381574262,1756288266618,-151.0,0.00023664,7]
[381574263,1756288266628,-151.0,0.00023664,7]
[381574264,1756288266638,-151.0,0.00023664,7]
[381574265,1756288266648,-530.0,0.00023664,2]
[381574266,1756288266658,-480.0,0.00023664,2]
[381574267,1756288266667,-151.0,0.00023664,7]
[381574268,1756288266677,-151.0,0.00023664,7]
[381574269,1756288266686,-317.859663,0.00023664,7]
[381574270,1756288266695,-566.54,0.00023664,2]
[381574271,1756288266705,-317.859663,0.00023664,7]
[381574272,1756288266715,-480.0,0.00023664,2]
[381574273,1756288266724,-317.859663,0.00023664,7]
[381574274,1756288266734,-317.859663,0.00023664,7]
[381574275,1756288266748,-230.122824,0.00023664,7]
[381574276,1756288266758,-230.122824,0.00023664,7]
[381574277,1756288266767,-230.122824,0.00023664,7]
[381574278,1756288266777,-230.122824,0.00023664,7]
[381574279,1756288266786,-593.26,0.00023664,2]
[381574280,1756288266798,-575.53,0.00023664,2]
[381574281,1756288266807,-151.0,0.00023664,7]
[381574282,1756288266816,-480.0,0.00023664,2]
[381574283,1756288266825,-574.91,0.00023664,2]
[381574284,1756288266837,-151.0,0.00023664,7]
[381574285,1756288266847,-151.0,0.00023664,7]
[381574286,1756288266856,-151.0,0.00023664,7]
[381574287,1756288266865,-151.0,0.00023664,7]
[381574288,1756288266875,-151.0,0.00023664,7]
[381574289,1756288266884,-480.0,0.00023664,2]
[381574290,1756288266893,-154.381617,0.00023664,7]
[381574291,1756288266903,-1217.34,0.00023664,2]
[381574292,1756288266911,-480.0,0.00023664,2]
[381574293,1756288266921,-480.0,0.00023664,2]
[381574294,1756288266931,-787.41,0.00023664,2]
[381574295,1756288266941,-151.0,0.00023664,7]
[381574296,1756288266950,-151.0,0.00023664,7]
[381574297,1756288266960,-480.0,0.00023664,2]
[381574298,1756288266969,-151.0,0.00023664,7]
[381574299,1756288266980,-151.0,0.00023664,7]
[381574300,1756288266991,-151.0,0.00023664,7]
[381574301,1756288267000,-480.0,0.00023664,2]
[381574302,1756288267010,-151.0,0.00023664,7]
[381574303,1756288267020,-533.57,0.00023664,2]
[381574304,1756288267029,-297.26444,0.00023664,7]
[381574305,1756288267039,-480.0,0.00023664,2]
[381574306,1756288267048,-871.59,0.00023664,2]
[381574307,1756288267058,-151.0,0.00023664,7]
[381574308,1756288267207,-151.0,0.00023664,7]
[381574309,1756288267218,-480.0,0.00023664,2]
[381574310,1756288267227,-480.0,0.00023664,2]
[381574311,1756288267236,-151.0,0.00023664,7]
[381574312,1756288267247,-480.0,0.00023664,2]
[381574313,1756288267256,-156.1979697,0.00023664,2]
[381574314,1756288267265,-151.0,0.00023664,7]
[381574315,1756288267275,-480.0,0.00023664,2]
[381574316,1756288267284,-812.35,0.00023664,2]
[381574317,1756288267294,-480.0,0.00023664,2]
[381574318,1756288267303,-151.0,0.00023664,7]
[381574319,1756288267312,-613.14,0.00023664,2]
[381574320,1756288267322,-480.0,0.00023664,2]
[381574321,1756288267331,-480.0,0.00023664,2]
[381574322,1756288267340,-480.0,0.00023664,2]
[381574323,1756288267349,-480.0,0.00023664,2]
[381574324,1756288267358,-480.0,0.00023664,2]
[381574325,1756288267368,-1283.2,0.00023664,2]
[381574326,1756288267377,-480.0,0.00023664,2]
[381574327,1756288267386,-828.64,0.00023664,2]
[381574328,1756288267396,-480.0,0.00023664,2]
[381574329,1756288267405,-507.03,0.00023664,2]
[381574330,1756288267414,-480.0,0.00023664,2]
[381574331,1756288267423,-494.59,0.00023664,2]
[381574332,1756288267433,-1014.51,0.00023664,2]
[381574333,1756288267442,-618.7,0.00023664,2]
[381574334,1756288267452,-480.0,0.00023664,2]
[381574335,1756288267461,-480.0,0.00023664,2]
[381574336,1756288267470,-1160.58,0.00023664,2]
[381574337,1756288267481,-480.0,0.00023664,2]
[381574338,1756288267490,-480.0,0.00023664,2]
[381574339,1756288267499,-480.0,0.00023664,2]
[381574340,1756288267509,-500.0,0.00023664,2]
[381574341,1756288267518,-588.62,0.00023664,2]
[381574342,1756288267528,-152.908606,0.00023664,7]
[381574343,1756288267537,-151.0,0.00023664,7]
[381574344,1756288267546,-861.786613,0.00023664,7]
[381574345,1756288267555,-151.0,0.00023664,7]
[381574346,1756288267564,-861.786613,0.00023664,7]
[381574347,1756288267574,-861.786613,0.00023664,7]
[381574348,1756288267583,-327.923955,0.00023664,7]
[381574349,1756288267593,-408.125973,0.00023664,7]
[381574350,1756288267602,-861.786613,0.00023664,7]
[381574351,1756288267611,-327.923955,0.00023664,7]
[381574352,1756288267620,-408.125973,0.00023664,7]
[381574353,1756288267629,-408.125973,0.00023664,7]
[381574354,1756288267638,-327.923955,0.00023664,7]
[381574355,1756288267647,-408.125973,0.00023664,7]
[381574356,1756288267656,-327.923955,0.00023664,7]
[381574357,1756288267665,-972.872694,0.00023664,7]
[381574358,1756288267674,-582.81,0.00023664,2]
[381574359,1756288267683,-972.872694,0.00023664,7]
[381574360,1756288267692,-151.0,0.00023664,7]
[381574361,1756288267701,-972.872694,0.00023664,7]
[381574362,1756288267710,-972.872694,0.00023664,7]
[381574363,1756288267719,-480.0,0.00023664,2]
[381574364,1756288267728,-480.0,0.00023664,2]
[381574365,1756288267737,-480.0,0.00023664,2]
[381574366,1756288267746,-151.0,0.00023664,7]
[381574367,1756288267758,-480.0,0.00023664,2]
[381574368,1756288267768,-151.0,0.00023664,7]
[381574369,1756288267777,-494.79,0.00023664,2]
[381574370,1756288267786,-467.619137,0.00023664,7]
[381574371,1756288267797,-467.619137,0.00023664,7]
[381574372,1756288267806,-467.619137,0.00023664,7]
[381574373,1756288267816,-713.46,0.00023664,2]
[381574374,1756288267826,-467.619137,0.00023664,7]
[381574375,1756288267836,-480.0,0.00023664,2]
[381574376,1756288267845,-480.0,0.00023664,2]
[381574377,1756288267854,-770.51,0.00023665,2]
[381574378,1756288267863,-151.0,0.00023665,7]
[381574379,1756288267872,-298.56992,0.00023665,7]
[381574380,1756288267881,-187.039714,0.00023665,7]
[381574381,1756288267890,-298.56992,0.00023665,7]
[381574382,1756288267899,-187.039714,0.00023665,7]
[381574383,1756288267908,-298.56992,0.00023665,7]
[381574384,1756288267917,-187.039714,0.00023665,7]
[381574385,1756288267927,-298.56992,0.00023665,7]
[381574386,1756288267937,-187.039714,0.00023665,7]
[381574387,1756288267946,-151.0,0.00023665,7]
[381574388,1756288267956,-151.0,0.00023665,7]
[381574389,1756288267965,-155.935075,0.00023665,7]
[381574390,1756288267974,-173.122268,0.00023665,7]
[381574391,1756288267984,-173.122268,0.00023665,7]
[381574392,1756288267994,-173.122268,0.00023665,7]
[381574393,1756288268004,-173.122268,0.00023665,7]
[381574394,1756288268013,-898.22,0.00023665,2]
[381574395,1756288268023,-480.0,0.00023667,2]
[381574396,1756288268032,-480.0,0.00023667,2]
[381574397,1756288268042,-816.02,0.00023668,2]
[381574398,1756288268051,-1050.17,0.00023668,2]
[381574399,1756288268061,-685.52,0.00023668,2]
[381574400,1756288268071,-686.0,0.00023668,2]
[381574401,1756288268081,-700.03,0.00023668,2]
[381574402,1756288268090,-921.5,0.00023668,2]
[381574403,1756288268100,-1083.42,0.00023668,2]
[381574404,1756288268109,-480.0,0.00023668,2]
[381574405,1756288268119,-766.36,0.00023668,2]
[381574406,1756288268130,-648.57,0.00023668,2]
[381574407,1756288268139,-480.0,0.00023668,2]
[381574408,1756288268148,-480.0,0.00023668,2]
[381574409,1756288268159,-557.87,0.00023668,2]
[381574410,1756288268169,-480.0,0.00023668,2]
[381574411,1756288268178,-491.91,0.00023668,2]
[381574412,1756288268187,-153.0,0.00023699,2]
[381574413,1756288268196,-3159.39312597,0.000237,14]
[381574414,1756288268206,-151.0,0.000237,7]
[381574415,1756288268215,-151.0,0.000237,7]
[381574416,1756288268224,-151.0,0.000237,7]
[381574417,1756288268234,-151.0,0.000237,7]
[381574418,1756288268244,-151.0,0.000237,7]
[381574419,1756288268253,-151.0,0.000237,7]
[381574420,1756288268263,-256.151685,0.000237,7]
[381574421,1756288268274,-151.0,0.000237,7]
[381574422,1756288268283,-151.0,0.000237,7]
[381574423,1756288268292,-151.0,0.000237,7]
[381574424,1756288268301,-151.0,0.000237,7]
[381574425,1756288268310,-151.0,0.000237,7]
[381574426,1756288268321,-151.0,0.000237,7]
[381574427,1756288268330,-151.0,0.000237,7]
[381574428,1756288268339,-151.0,0.000237,7]
[381574429,1756288268348,-151.0,0.000237,7]
[381574430,1756288268357,-181.156993,0.000237,7]
[381574431,1756288268367,-151.0,0.000237,7]
[381574432,1756288268376,-1000.0,0.000237,2]
[381574433,1756288268386,-1000.0,0.000237,2]
[381574434,1756288268395,-1000.0,0.000237,2]
[381574435,1756288268404,-1000.0,0.000237,2]
[381574436,1756288268413,-1000.0,0.000237,2]
[381574437,1756288268422,-1000.0,0.000237,2]
[381574438,1756288268438,-1000.0,0.000237,2]
[381574439,1756288268448,-1000.0,0.000237,2]
[381574440,1756288268457,-1000.0,0.000237,2]
[381574441,1756288268468,-1000.0,0.000237,2]
[381574442,1756288268477,-1000.0,0.000237,2]
[381574443,1756288268486,-1000.0,0.000237,2]
[381574444,1756288268497,-1000.0,0.000237,2]
[381574445,1756288268506,-1000.0,0.000237,2]
[381574446,1756288268515,-1000.0,0.000237,2]
[381574447,1756288268524,-1000.0,0.000237,2]
[381574448,1756288268534,-1000.0,0.000237,2]
[381574449,1756288268543,-1000.0,0.000237,2]
[381574450,1756288268553,-1000.0,0.000237,2]
[381574451,1756288268563,-1000.0,0.000237,2]
[381574452,1756288268572,-1000.0,0.000237,2]
[381574453,1756288268581,-1000.0,0.000237,2]
[381574454,1756288268590,-1000.0,0.000237,2]
[381574455,1756288268599,-1000.0,0.000237,2]
[381574456,1756288268609,-1000.0,0.000237,2]
[381574457,1756288268621,-1000.0,0.000237,2]
[381574458,1756288268642,-1000.0,0.000237,2]
[381574459,1756288268656,-1000.0,0.000237,2]
[381574460,1756288268665,-1000.0,0.000237,2]
[381574461,1756288268674,-1000.0,0.000237,2]
[381574462,1756288268683,-939.262323,0.000237,2]
[381574463,1756288268694,-480.0,0.00023701,2]
[381574464,1756288268703,-480.0,0.00023701,2]
[381574465,1756288268712,-480.0,0.00023701,2]
[381574466,1756288268721,-480.0,0.00023701,2]
[381574467,1756288268730,-480.0,0.00023701,2]
[381574468,1756288268739,-480.0,0.00023701,2]
[381574469,1756288268751,-789.09,0.00023701,2]
[381574470,1756288268762,-768.77,0.00023701,2]
[381574471,1756288268771,-480.0,0.00023701,2]
[381574472,1756288268780,-151.0,0.00023701,7]
[381574473,1756288268789,-151.0,0.00023701,7]
[381574474,1756288268799,-616.36,0.00023701,2]
[381574475,1756288268808,-151.0,0.00023701,7]
[381574476,1756288268817,-256.293756,0.00023701,7]
[381574477,1756288268827,-151.0,0.00023701,7]
[381574478,1756288268837,-151.0,0.00023701,7]
[381574479,1756288268847,-529.74457,0.00023701,7]
[381574480,1756288268856,-529.74457,0.00023701,7]
[381574481,1756288268865,-529.74457,0.00023701,7]
[381574482,1756288268874,-529.74457,0.00023701,7]
[381574483,1756288268883,-151.0,0.00023701,7]
[381574484,1756288268893,-151.0,0.00023701,7]
[381574485,1756288268902,-151.0,0.00023701,7]
[381574486,1756288268911,-480.0,0.00023704,2]
[381574487,1756288268921,-567.4,0.00023704,2]
[381574488,1756288268930,-959.11,0.00023704,2]
[381574489,1756288268940,-1401.83,0.00023704,2]
[381574490,1756288268949,-2249.38,0.00023704,2]
[381574491,1756288268959,-480.0,0.00023705,2]
[381574492,1756288268968,-497.99,0.00023705,2]
[381574493,1756288268978,-480.0,0.00023705,2]
[381574494,1756288268987,-553.57,0.00023705,2]
[381574495,1756288268999,-597.25,0.00023705,2]
[381574496,1756288269009,-217.89953692,0.00023705,2]
[381574497,1756288269019,-755.86,0.00023705,2]
[381574498,1756288269028,-1085.75,0.00023705,2]
[381574499,1756288269038,-1573.83,0.00023705,2]
[381574500,1756288269047,-480.0,0.00023705,2]
[381574501,1756288269056,-480.0,0.00023705,2]
[381574502,1756288269066,-480.0,0.00023705,2]
[381574503,1756288269075,-480.0,0.00023705,2]
[381574504,1756288269085,-480.0,0.00023705,2]
[381574505,1756288269094,-499.64,0.00023705,2]
[381574506,1756288269103,-507.21,0.00023705,2]
[381574507,1756288269112,-523.7,0.00023705,2]
[381574508,1756288269122,-943.05,0.00023705,2]
[381574509,1756288269131,-480.0,0.00023705,2]
[381574510,1756288269141,-564.27,0.00023705,2]
[381574511,1756288269150,-519.72,0.00023705,2]
[381574512,1756288269160,-617.02,0.00023705,2]
[381574513,1756288269169,-480.0,0.00023705,2]
[381574514,1756288269178,-480.0,0.00023705,2]
[381574515,1756288269187,-911.02,0.00023705,2]
[381574516,1756288269197,-1463.69,0.00023705,2]
[381574517,1756288269206,-620.71,0.00023705,2]
[381574518,1756288269215,-1304.04,0.00023705,2]
[381574519,1756288269226,-1671.4,0.00023705,2]
[381574520,1756288269246,-864.97,0.00023705,2]
[381574521,1756288269259,-670.9,0.00023705,2]
[381574522,1756288269268,-539.61,0.00023705,2]
[381574523,1756288269277,-480.0,0.00023705,2]
[381574524,1756288269286,-480.0,0.00023705,2]
[381574525,1756288269295,-480.0,0.00023705,2]
[381574526,1756288269304,-1318.43,0.00023705,2]
[381574527,1756288269315,-546.1,0.00023705,2]
[381574528,1756288269324,-870.27,0.00023705,2]
[381574529,1756288269333,-480.0,0.00023705,2]
[381574530,1756288269344,-480.0,0.00023705,2]
[381574531,1756288269353,-1065.29,0.00023705,2]
[381574532,1756288269363,-480.0,0.00023705,2]
[381574533,1756288269373,-490.13,0.00023705,2]
[381574534,1756288269382,-480.0,0.00023705,2]
[381574535,1756288269391,-749.7,0.00023705,2]
[381574536,1756288269400,-579.29,0.00023705,2]
[381574537,1756288269409,-1026.67,0.00023705,2]
[381574538,1756288269418,-525.29,0.00023705,2]
[381574539,1756288269427,-480.0,0.00023705,2]
[381574540,1756288269436,-151.0,0.00023709,7]
[381574541,1756288269446,-151.0,0.00023709,7]
[381574542,1756288269455,-151.0,0.00023709,7]
[381574543,1756288269464,-154.654789,0.00023709,7]
[381574544,1756288269473,-151.0,0.00023709,7]
[381574545,1756288269483,-151.0,0.00023709,7]
[381574546,1756288269493,-151.0,0.00023709,7]
[381574547,1756288269502,-151.0,0.00023709,7]
[381574548,1756288269511,-151.0,0.00023709,7]
[381574549,1756288269520,-151.0,0.00023709,7]
[381574550,1756288269529,-151.0,0.00023709,7]
[381574551,1756288269538,-151.0,0.00023709,7]
[381574552,1756288269547,-160.0,0.00023709,2]
[381574553,1756288269557,-2719.37153068,0.00023711,2]
[381574554,1756288269566,-659.44597578,0.00023721,2]
[381574555,1756288269576,-502.97312964,0.00023721,2]
[381574556,1756288269717,-1000.0,0.00023721,2]
[381574557,1756288269727,-566.84078603,0.00023721,2]
[381574558,1756288269737,-1000.0,0.00023721,2]
[381574559,1756288269747,-1004.584531,0.00023721,2]
[381574560,1756288269758,-502.51504051,0.00023721,2]
[381574561,1756288269768,-250.0,0.00023721,2]
[381574562,1756288269777,-500.0,0.00023721,2]
[381574563,1756288269786,-1000.0,0.00023721,2]
[381574564,1756288269796,-1000.0,0.00023721,2]
[381574565,1756288269805,-1000.0,0.00023721,2]
[381574566,1756288269814,-1012.56600855,0.00023721,2]
[381574567,1756288269823,-1000.0,0.00023721,2]
[381574568,1756288269834,-710.17504458,0.00023721,2]
[381574569,1756288269842,-1000.0,0.00023721,2]
[381574570,1756288269851,-1000.0,0.00023721,2]
[381574571,1756288269860,-1000.0,0.00023721,2]